bitfinex/quotes_SOLUSD_20250904
["timestamp","ask_amount","ask_price","bid_price","bid_amount"]
[1756989080199,7.18442905,208.53,208.47,7.86442905]
[1756989080397,7.18442905,208.53,208.47,12.66111672]
[1756989080822,0.68,208.54,208.47,12.66111672]
[1756989081001,7.18442905,208.53,208.47,12.66111672]
[1756989081323,7.18442905,208.54,208.49,7.18442905]
[1756989081497,33.18442905,208.55,208.5,7.18442905]
[1756989081696,33.86442905,208.55,208.5,7.18442905]
[1756989081918,7.18442905,208.54,208.49,7.86442905]
[1756989082825,7.18442905,208.54,208.49,12.66075566]
[1756989083227,7.86442905,208.54,208.48,11.98101887]
[1756989083521,7.86442905,208.54,208.43,12.27822731]
[1756989083522,0.68,208.53,208.44,0.28432314]
[1756989083817,7.18442905,208.48,208.42,11.98243308]
[1756989084122,7.18442905,208.48,208.43,7.18442905]
[1756989084302,7.86442905,208.48,208.43,7.86442905]
[1756989084505,7.18442905,208.48,208.43,7.86442905]
[1756989084823,0.68,208.51,208.43,12.66210216]
[1756989085021,7.18442905,208.48,208.43,12.66210216]
[1756989085317,7.18442905,208.49,208.44,7.86442905]
[1756989085819,7.86442905,208.48,208.41,5.47805216]
[1756989085995,7.18442905,208.45,208.41,4.79805216]
[1756989086197,7.18442905,208.44,208.39,0.68]
[1756989086407,7.86442905,208.45,208.39,7.86442905]
[1756989086708,7.18442905,208.45,208.4,7.18442905]
[1756989086914,7.18442905,208.45,208.41,5.47823424]
[1756989087304,7.18442905,208.44,208.41,4.79823424]
[1756989087505,7.18442905,208.44,208.39,7.18442905]
[1756989087702,0.68,208.44,208.39,4.79867559]
[1756989087904,7.18442905,208.44,208.4,0.68]
[1756989088112,7.18442905,208.45,208.4,0.68]
[1756989089517,7.18442905,208.45,208.39,7.18442905]
[1756989089724,7.18442905,208.45,208.38,0.03]
[1756989089725,7.18442905,208.4,208.38,0.03]
[1756989089916,7.18442905,208.39,208.38,0.03]
[1756989090124,7.86442905,208.39,208.38,0.03]
[1756989091205,12.6631238,208.39,208.38,0.03]
[1756989091800,33.44314686,208.39,208.38,0.03]
[1756989092421,26.25871781,208.39,208.38,0.03]
[1756989093014,33.44314686,208.39,208.38,0.03]
[1756989093419,72.30314686,208.39,208.38,0.03]
[1756989094842,33.72747,208.39,208.38,0.03]
[1756989095030,47.0643462,208.36,208.35,0.03]
[1756989095341,47.0643462,208.36,208.33,0.03]
[1756989095342,13.87991715,208.35,208.33,0.03]
[1756989095527,7.18442905,208.34,208.33,0.03]
[1756989096036,26.57685828,208.34,208.33,0.03]
[1756989096240,7.18442905,208.24,208.22,0.03]
[1756989096812,26.0,208.25,208.22,0.03]
[1756989097015,7.18442905,208.24,208.22,0.03]
[1756989097921,38.84,208.26,208.23,0.68]
[1756989098135,7.18442905,208.26,208.22,0.03]
[1756989098335,7.18442905,208.25,208.22,0.71]
[1756989098721,33.18442905,208.26,208.23,0.68]
[1756989098907,26.0,208.26,208.23,5.48221329]
[1756989099111,26.0,208.26,208.22,0.03]
[1756989099112,7.18442905,208.24,208.22,0.03]
[1756989099321,7.18442905,208.23,208.22,0.03]
[1756989099532,46.74442905,208.23,208.22,0.03]
[1756989099926,60.34002306,208.23,208.22,0.03]
[1756989100342,21.46002306,208.23,208.22,0.03]
[1756989100551,38.88,208.23,208.22,0.03]
[1756989100748,46.74442905,208.23,208.22,0.03]
[1756989101061,7.86442905,208.23,208.22,0.03]
[1756989101263,46.74442905,208.23,208.22,0.03]
[1756989102059,46.06442905,208.23,208.22,0.03]
[1756989102231,64.86,208.23,208.22,0.03]
[1756989102435,26.0,208.23,208.22,0.03]
[1756989102636,72.06442905,208.23,208.22,0.03]
[1756989103358,13.59559401,208.28,208.22,0.03]
[1756989103359,13.59559401,208.28,208.22,0.71]
[1756989103561,33.18442905,208.24,208.22,0.03]
[1756989104344,7.18442905,208.23,208.22,0.03]
[1756989104847,7.88442905,208.23,208.22,0.03]
[1756989105453,7.18442905,208.23,208.22,0.03]
[1756989105633,7.18442905,208.24,208.22,0.03]
[1756989105833,72.04442905,208.25,208.22,0.03]
[1756989106254,7.18442905,208.24,208.22,0.03]
[1756989106451,7.18442905,208.23,208.22,0.03]
[1756989106657,7.88442905,208.23,208.22,0.03]
[1756989107234,0.7,208.23,208.22,0.03]
[1756989107571,7.88442905,208.23,208.22,0.03]
[1756989107734,26.28240504,208.23,208.22,0.03]
[1756989109159,26.56672818,208.23,208.2,0.03]
[1756989109348,20.78002306,208.21,208.2,0.03]
[1756989109750,21.48002306,208.21,208.2,0.03]
[1756989110650,39.59559401,208.18,208.17,0.03]
[1756989110858,85.70002306,208.18,208.17,0.03]
[1756989111044,86.40002306,208.18,208.17,0.03]
[1756989111267,91.20355846,208.18,208.17,0.03]
[1756989111471,13.59559401,208.17,208.15,0.03]
[1756989111648,39.59559401,208.12,208.03,0.68]
[1756989111849,7.18442905,208.06,208.03,0.68]
[1756989112387,38.94,208.08,208.04,0.68]
[1756989112388,7.18442905,208.07,208.04,0.68]
[1756989112666,7.18442905,208.06,208.04,0.68]
[1756989112873,7.18442905,208.05,208.02,0.68]
[1756989113053,38.94,208.08,208.02,0.68]
[1756989113250,7.18442905,208.05,208.03,0.68]
[1756989113451,7.18442905,208.04,208.01,0.1]
[1756989113884,26.0,208.09,208.02,0.68]
[1756989114254,7.18442905,208.07,208.02,0.68]
[1756989114455,7.18442905,208.04,208.02,0.68]
[1756989114671,7.18442905,208.03,208.01,0.1]
[1756989114969,7.18442905,208.02,208.01,0.1]
[1756989115142,0.7,208.07,208.01,0.1]
[1756989115342,7.18442905,208.03,208.01,0.1]
[1756989115560,65.12,208.06,208.01,0.78]
[1756989115561,7.18442905,208.02,208.01,0.78]
[1756989115765,7.18442905,208.02,208.01,0.1]
[1756989116594,7.18442905,208.03,208.01,0.78]
[1756989116763,39.1,208.08,208.02,7.18442905]
[1756989116963,39.1,208.09,208.03,0.68]
[1756989117266,39.1,208.09,208.05,7.18442905]
[1756989117478,0.7,208.12,208.06,12.67073492]
[1756989117479,7.18442905,208.12,208.06,12.67073492]
[1756989117785,33.18442905,208.12,208.06,4.80630587]
[1756989117973,46.32442905,208.12,208.06,12.67073492]
[1756989118167,26.0,208.11,208.06,12.67073492]
[1756989118366,46.30442905,208.12,208.06,4.80630587]
[1756989118569,7.18442905,208.11,208.06,12.67073492]
[1756989118863,26.0,208.12,208.07,7.86442905]
[1756989119073,46.32442905,208.15,208.1,7.18442905]
[1756989119276,39.14,208.15,208.1,7.86442905]
[1756989119476,65.14,208.15,208.11,4.80515112]
[1756989119676,72.32442905,208.15,208.11,4.80515112]
[1756989119873,65.14,208.15,208.1,5.48534881]
[1756989120170,7.18442905,208.16,208.11,0.68]
[1756989120372,65.14,208.16,208.12,7.86442905]
[1756989120575,26.0,208.16,208.12,7.86442905]
[1756989120800,0.7,208.2,208.13,7.86442905]
[1756989120968,39.12,208.19,208.15,7.18442905]
[1756989121300,39.12,208.19,208.1,16.81880387]
[1756989121301,7.18442905,208.17,208.1,5.48534881]
[1756989121465,7.18442905,208.17,208.11,7.18442905]
[1756989121663,7.18442905,208.13,208.06,0.68]
[1756989121887,7.18442905,208.12,208.06,7.86442905]
[1756989122097,39.12,208.15,208.08,7.18442905]
[1756989122275,65.14,208.16,208.1,7.18442905]
[1756989122475,72.32442905,208.16,208.1,7.18442905]
[1756989122667,7.18442905,208.15,208.1,7.18442905]
[1756989122869,7.18442905,208.14,208.1,0.68]
[1756989123496,7.18442905,208.15,208.11,4.80515112]
[1756989123998,39.12,208.19,208.14,7.18442905]
[1756989124304,0.7,208.25,208.18,7.18442905]
[1756989124598,0.7,208.27,208.2,7.18442905]
[1756989125194,0.7,208.27,208.22,7.18442905]
[1756989125407,0.7,208.27,208.18,0.28432314]
[1756989125602,5.50148496,208.27,208.19,4.80330467]
[1756989125803,7.18442905,208.24,208.19,4.80330467]
[1756989125982,7.88442905,208.23,208.17,7.18442905]
[1756989126407,7.18442905,208.21,208.15,12.66865677]
[1756989126712,7.18442905,208.2,208.15,0.68]
[1756989126882,7.88442905,208.19,208.13,7.86442905]
[1756989127084,7.18442905,208.14,208.07,5.48607487]
[1756989127280,0.7,208.18,208.07,5.48607487]
[1756989127281,7.18442905,208.12,208.07,5.48607487]
[1756989127505,33.18442905,208.15,208.09,7.18442905]
[1756989127816,7.18442905,208.18,208.12,7.18442905]
[1756989127995,7.18442905,208.16,208.08,0.68]
[1756989128182,7.18442905,208.12,208.06,7.18442905]
[1756989128388,0.7,208.13,208.05,7.86442905]
[1756989128587,26.0,208.14,208.09,7.18442905]
[1756989128783,7.18442905,208.16,208.11,7.18442905]
[1756989129088,33.18442905,208.17,208.12,7.86442905]
[1756989130220,33.18442905,208.19,208.14,7.18442905]
[1756989130397,47.02442905,208.22,208.16,7.18442905]
[1756989130708,13.59559401,208.25,208.19,7.18442905]
[1756989130709,39.84,208.25,208.19,7.18442905]
[1756989130918,39.84,208.25,208.17,0.68]
[1756989130919,33.18442905,208.24,208.17,0.68]
[1756989131085,33.18442905,208.24,208.19,7.18442905]
[1756989131289,7.18442905,208.2,208.12,5.48485589]
[1756989131589,7.18442905,208.15,208.09,7.18442905]
[1756989132003,39.82,208.21,208.14,7.18442905]
[1756989132208,0.7,208.21,208.15,7.18442905]
[1756989132403,7.18442905,208.18,208.11,0.7]
[1756989132631,7.18442905,208.12,208.07,5.50588469]
[1756989132788,39.96,208.17,208.04,7.18442905]
[1756989132789,7.18442905,208.09,208.04,7.18442905]
[1756989132989,0.68,208.12,208.04,7.18442905]
[1756989133193,7.18442905,208.1,208.05,0.7]
[1756989133593,7.18442905,208.1,208.05,0.98432314]
[1756989134008,26.0,208.14,208.06,7.88442905]
[1756989134196,7.18442905,208.11,208.06,0.7]
[1756989134707,7.18442905,208.11,208.05,11.99080364]
[1756989134915,7.18442905,208.1,208.05,4.80637459]
[1756989135106,7.18442905,208.1,208.05,5.50637459]
[1756989135414,4.80475596,208.13,208.02,0.7]
[1756989135415,7.18442905,208.07,208.02,0.7]
[1756989135593,26.0,208.11,208.03,0.7]
[1756989135793,26.0,208.11,208.07,7.18442905]
[1756989135994,7.18442905,208.12,208.07,7.18442905]
[1756989135995,0.68,208.15,208.07,7.18442905]
[1756989136205,7.18442905,208.1,208.05,0.7]
[1756989136491,7.18442905,208.1,208.02,17.80960982]
[1756989136815,7.18442905,208.08,208.03,0.28432314]
[1756989137003,7.18442905,208.08,208.03,7.46875219]
[1756989137205,7.86442905,208.08,208.03,0.28432314]
[1756989137512,7.18442905,208.08,208.03,12.27572472]
[1756989137820,7.18442905,208.07,208.03,5.09129567]
[1756989138021,7.86442905,208.08,208.06,0.03]
[1756989138221,7.86442905,208.07,208.06,0.03]
[1756989138521,0.68,208.07,208.06,0.03]
[1756989138694,7.86442905,208.07,208.06,0.03]
[1756989139022,39.26,208.08,208.06,0.03]
[1756989139023,26.0,208.08,208.06,0.03]
[1756989139313,26.0,208.07,208.06,0.03]
[1756989141098,26.0,208.1,208.06,0.03]
[1756989141299,0.68,208.13,208.07,10.63003515]
[1756989141608,11.31003515,208.13,208.07,10.63003515]
[1756989141813,10.63003515,208.12,208.06,10.66003515]
[1756989142124,36.63003515,208.12,208.06,0.03]
[1756989142334,10.63003515,208.09,208.06,0.03]
[1756989142623,10.63003515,208.08,208.06,0.03]
[1756989142821,10.63003515,208.1,208.06,0.03]
[1756989143012,26.68,208.12,208.06,10.66003515]
[1756989143211,0.68,208.16,208.11,15.43518627]
[1756989143392,36.69003515,208.15,208.07,0.7]
[1756989143594,10.63003515,208.13,208.07,16.13607223]
[1756989143798,26.0,208.14,208.06,10.66003515]
[1756989143799,10.63003515,208.11,208.06,10.66003515]
[1756989144014,10.63003515,208.1,208.06,0.03]
[1756989144324,11.31003515,208.09,208.06,0.03]
[1756989144535,10.63003515,208.11,208.06,4.83628586]
[1756989144700,10.63003515,208.11,208.06,15.46632101]
[1756989144900,11.31003515,208.1,208.06,0.03]
[1756989145311,37.31003515,208.1,208.06,0.03]
[1756989145722,11.31003515,208.09,208.06,0.03]
[1756989146245,36.63003515,208.07,208.06,0.03]
[1756989146603,37.31003515,208.07,208.06,0.03]
[1756989147605,0.68,208.13,208.06,0.03]
[1756989147822,36.63003515,208.1,208.06,0.03]
[1756989148026,37.31003515,208.1,208.06,0.03]
[1756989148414,36.63003515,208.12,208.06,10.66003515]
[1756989148636,50.49003515,208.13,208.07,10.63003515]
[1756989148840,26.0,208.12,208.08,10.63003515]
[1756989149206,26.68,208.11,208.06,15.46620737]
[1756989149411,0.68,208.1,208.06,0.03]
[1756989149713,10.63003515,208.08,208.06,0.03]
[1756989150124,65.18,208.13,208.07,10.63003515]
[1756989150327,37.31003515,208.13,208.07,10.63003515]
[1756989150531,0.06,208.15,208.06,5.53621919]
[1756989150828,0.06,208.15,208.07,0.98432314]
[1756989151031,26.0,208.14,208.07,0.98432314]
[1756989151223,42.11461492,208.14,208.08,10.63003515]
[1756989151726,10.63003515,208.13,208.08,10.63003515]
[1756989151931,10.63003515,208.13,208.07,0.7]
[1756989151932,0.68,208.12,208.07,10.63003515]
[1756989152231,10.63003515,208.13,208.07,11.33003515]
[1756989152909,10.63003515,208.1,208.06,0.03]
[1756989153128,10.63003515,208.09,208.06,0.03]
[1756989153322,0.68,208.08,208.06,0.03]
[1756989153535,11.31003515,208.08,208.06,0.03]
[1756989154049,11.31003515,208.07,208.06,0.03]
[1756989154226,10.63003515,208.09,208.06,4.83626194]
[1756989154433,11.31003515,208.09,208.06,0.03]
[1756989154639,0.68,208.09,208.06,0.03]
[1756989154824,11.31003515,208.09,208.06,0.03]
[1756989155138,10.63003515,208.09,208.06,0.03]
[1756989155321,11.31003515,208.09,208.06,0.03]
[1756989155831,26.0,208.1,208.06,10.66003515]
[1756989156142,10.63003515,208.13,208.08,10.63003515]
[1756989156326,26.0,208.13,208.08,11.33003515]
[1756989156524,26.0,208.13,208.1,10.63003515]
[1756989156923,26.0,208.13,208.09,10.63003515]
[1756989157150,26.68,208.13,208.09,10.63003515]
[1756989157517,26.0,208.13,208.09,10.63003515]
[1756989157751,10.63003515,208.1,208.06,0.03]
[1756989158123,36.63003515,208.13,208.07,11.33003515]
[1756989158327,10.63003515,208.1,208.06,0.03]
[1756989158626,10.63003515,208.08,208.06,0.03]
[1756989158826,10.63003515,208.07,208.06,0.03]
[1756989159223,26.0,208.1,208.06,0.03]
[1756989159649,10.63003515,208.09,208.06,0.03]
[1756989159847,10.63003515,208.08,208.06,0.03]
[1756989160056,10.63003515,208.07,208.06,0.03]
[1756989160353,0.68,208.07,208.06,0.03]
[1756989160516,11.31003515,208.07,208.06,0.03]
[1756989161167,16.11611002,208.07,208.06,0.03]
[1756989161533,29.71170403,208.07,208.06,0.03]
[1756989162631,29.99602717,208.07,208.06,0.03]
[1756989163650,40.62606232,208.07,208.06,0.03]
[1756989163838,39.87991715,208.04,208.03,1e-08]
[1756989164027,89.6899523,208.04,208.03,1e-08]
[1756989164217,13.87991715,208.03,208.01,0.1]
[1756989164426,10.63003515,208.02,208.01,0.1]
[1756989164619,13.59559401,208.0,207.89,0.69]
[1756989164823,63.38562916,208.0,207.89,0.69]
[1756989165043,64.3699523,208.0,207.99,1e-08]
[1756989165254,4.80884828,207.95,207.86,0.69]
[1756989165455,26.0,207.9,207.85,0.1]
[1756989165756,10.63003515,207.86,207.85,0.1]
[1756989165945,26.0,207.92,207.86,0.69]
[1756989166249,10.63003515,207.88,207.85,0.1]
[1756989166459,65.3,207.9,207.85,0.79]
[1756989166632,10.63003515,207.88,207.85,0.79]
[1756989166836,10.63003515,207.88,207.86,0.69]
[1756989167042,10.63003515,207.88,207.85,0.1]
[1756989167346,26.0,207.9,207.86,0.69]
[1756989167525,26.0,207.9,207.87,0.69]
[1756989167925,26.0,207.9,207.88,10.63003515]
[1756989168164,26.0,207.92,207.89,0.69]
[1756989168326,26.0,207.92,207.9,10.63003515]
[1756989168525,10.63003515,207.93,207.87,10.63003515]
[1756989168723,36.63003515,207.93,207.87,10.63003515]
[1756989168922,10.63003515,207.92,207.87,10.63003515]
[1756989169228,26.0,207.89,207.87,11.32003515]
[1756989169428,26.0,207.89,207.87,0.69]
[1756989169749,26.7,207.89,207.85,0.1]
[1756989170051,0.7,207.89,207.85,0.1]
[1756989170226,11.33003515,207.89,207.85,0.1]
[1756989171049,26.0,207.89,207.86,11.32003515]
[1756989171241,26.0,207.88,207.85,10.73003515]
[1756989171548,26.0,207.88,207.85,0.1]
[1756989171943,10.63003515,207.89,207.87,10.63003515]
[1756989171944,65.28,207.89,207.87,10.63003515]
[1756989172138,26.0,207.89,207.88,10.63003515]
[1756989172535,26.0,207.89,207.87,11.32003515]
[1756989172727,11.33003515,207.88,207.85,0.1]
[1756989172923,36.63003515,207.86,207.85,0.1]
[1756989173136,39.59559401,207.86,207.85,0.1]
[1756989173333,39.59559401,207.86,207.74,0.69]
[1756989173334,26.0,207.82,207.74,0.69]
[1756989173652,10.63003515,207.79,207.74,4.81364024]
[1756989173849,11.33003515,207.79,207.73,10.63003515]
[1756989174153,39.56,207.78,207.71,0.69]
[1756989174344,0.7,207.81,207.74,10.63003515]
[1756989174549,26.0,207.8,207.75,0.69]
[1756989174862,65.7,207.8,207.76,0.69]
[1756989175031,26.0,207.8,207.76,10.63003515]
[1756989175350,5.51139427,207.84,207.81,0.03]
[1756989175351,26.0,207.82,207.81,0.03]
[1756989175759,39.72,207.82,207.81,0.03]
[1756989175956,39.7,207.82,207.81,0.72]
[1756989176133,13.59559401,207.9,207.81,11.35003515]
[1756989176337,0.7,207.91,207.82,0.69]
[1756989176654,10.63003515,207.92,207.82,0.69]
[1756989176655,26.0,207.87,207.82,0.69]
[1756989176841,26.0,207.87,207.83,0.69]
[1756989177230,26.0,207.87,207.85,10.63003515]
[1756989177435,39.74,207.9,207.86,10.63003515]
[1756989177739,39.74,207.89,207.85,4.81105011]
[1756989178257,33.22,207.93,207.86,0.69]
[1756989178455,39.7,207.92,207.86,0.69]
[1756989178638,39.7,207.92,207.85,4.81105011]
[1756989178844,40.4,207.92,207.85,4.81105011]
[1756989179240,26.0,207.89,207.85,4.81105011]
[1756989179559,26.0,207.89,207.86,4.81093043]
[1756989179863,26.0,207.89,207.87,10.63003515]
[1756989180048,26.7,207.89,207.83,4.81162488]
[1756989180253,26.7,207.89,207.84,10.63003515]
[1756989180555,26.7,207.89,207.85,10.63003515]
[1756989180731,26.0,207.9,207.88,10.63003515]
[1756989181056,65.72,207.92,207.89,10.63003515]
[1756989181257,11.33003515,207.91,207.83,0.69]
[1756989181437,0.7,207.91,207.86,10.63003515]
[1756989181637,11.33003515,207.91,207.86,10.63003515]
[1756989181853,10.63003515,207.89,207.84,10.63003515]
[1756989182270,39.76,207.88,207.82,4.81183025]
[1756989182567,39.76,207.88,207.85,10.63003515]
[1756989182935,40.44,207.89,207.82,5.50183025]
[1756989183253,39.74,207.89,207.82,5.50183025]
[1756989183447,39.74,207.89,207.85,10.63003515]
[1756989183654,39.74,207.88,207.87,10.63003515]
[1756989184037,26.0,207.92,207.87,11.32003515]
[1756989184347,65.72,207.92,207.9,10.63003515]
[1756989184555,26.0,207.92,207.91,10.63003515]
[1756989185554,10.63003515,207.98,207.91,16.1298086]
[1756989185754,0.7,207.99,207.94,10.63003515]
[1756989185958,39.7,207.98,207.91,5.49977345]
[1756989186156,65.7,207.98,207.87,4.81069899]
[1756989186345,65.7,207.98,207.86,0.14216157]
[1756989186346,10.63003515,207.92,207.85,0.28432314]
[1756989186552,10.63003515,207.9,207.84,16.13142852]
[1756989186763,26.0,207.89,207.85,10.63003515]
[1756989187059,26.0,207.89,207.85,0.69]
[1756989187269,26.0,207.89,207.86,10.63003515]
[1756989187440,50.47003515,207.91,207.86,16.13087706]
[1756989187848,50.47003515,207.91,207.86,5.50084191]
[1756989188162,10.63003515,207.88,207.82,10.63003515]
[1756989188375,10.63003515,207.87,207.82,4.81185641]
[1756989188583,0.7,207.86,207.81,0.03]
[1756989188738,26.0,207.84,207.81,15.47209205]
[1756989188944,10.63003515,207.87,207.81,16.16209205]
[1756989189254,50.55003515,207.87,207.81,16.16209205]
[1756989189752,50.55003515,207.87,207.81,15.47209205]
[1756989189964,10.63003515,207.86,207.81,0.03]
[1756989190164,10.63003515,207.85,207.81,0.03]
[1756989190677,44.73076451,207.87,207.81,0.03]
[1756989190678,10.63003515,207.83,207.81,0.03]
[1756989190955,37.33003515,207.84,207.81,0.03]
[1756989191138,36.63003515,207.84,207.81,0.03]
[1756989191334,11.33003515,207.82,207.81,0.03]
[1756989191946,16.14189156,207.82,207.81,0.03]
[1756989192146,29.73748557,207.82,207.81,0.03]
[1756989192676,19.10745042,207.82,207.81,0.03]
[1756989192857,29.73748557,207.82,207.81,0.03]
[1756989193057,0.7,207.82,207.81,0.03]
[1756989193241,26.0,207.83,207.81,0.03]
[1756989193438,39.94,207.82,207.81,0.03]
[1756989193760,40.61,207.82,207.81,0.03]
[1756989193958,51.24003515,207.82,207.81,0.03]
[1756989194449,0.67,207.82,207.81,0.03]
[1756989194642,36.63003515,207.83,207.81,0.03]
[1756989194842,65.92,207.83,207.81,0.03]
[1756989195479,4.81066953,207.88,207.81,0.03]
[1756989195783,0.67,207.85,207.81,0.03]
[1756989195941,26.0,207.86,207.81,10.66003515]
[1756989196140,0.67,207.85,207.81,15.47191851]
[1756989196749,10.63003515,207.82,207.81,0.03]
[1756989196958,50.53003515,207.82,207.81,0.03]
[1756989197158,51.20003515,207.82,207.81,0.03]
[1756989197358,40.55,207.82,207.81,0.03]
[1756989197551,0.67,207.82,207.81,0.03]
[1756989197751,39.88,207.82,207.81,0.03]
[1756989197948,0.67,207.82,207.81,0.03]
[1756989198156,39.86,207.82,207.81,0.03]
[1756989198360,26.0,207.86,207.81,0.03]
[1756989198579,37.30003515,207.82,207.81,0.03]
[1756989198873,90.75562916,207.82,207.81,0.03]
[1756989199082,26.0,207.79,207.78,0.03]
[1756989199248,76.67003515,207.79,207.78,0.03]
[1756989199452,73.39097868,207.79,207.78,0.03]
[1756989200147,66.71,207.79,207.78,0.03]
[1756989200352,78.20352981,207.79,207.78,0.03]
[1756989200782,73.39097868,207.79,207.78,0.03]
[1756989201801,0.67,207.79,207.78,0.03]
[1756989202086,26.0,207.81,207.78,0.03]
[1756989202289,0.67,207.83,207.78,7.40097868]
[1756989202466,40.06,207.84,207.79,0.69]
[1756989202668,26.0,207.81,207.79,0.69]
[1756989203072,26.0,207.81,207.78,6.71097868]
[1756989203280,26.0,207.81,207.79,0.69]
[1756989203479,7.35097868,207.8,207.78,0.03]
[1756989203690,6.68097868,207.8,207.78,0.03]
[1756989203873,7.35097868,207.79,207.78,0.03]
[1756989204303,0.67,207.79,207.78,0.03]
[1756989204508,7.35097868,207.79,207.78,0.03]
[1756989204710,30.81223541,207.81,207.78,0.03]
[1756989204876,40.04,207.8,207.78,0.03]
[1756989205269,72.72097868,207.81,207.78,0.03]
[1756989205668,6.71097868,207.84,207.78,0.03]
[1756989205874,26.0,207.8,207.78,0.03]
[1756989206701,5.48142813,207.84,207.79,6.68097868]
[1756989206702,40.02,207.82,207.79,6.68097868]
[1756989206991,40.0,207.85,207.81,6.68097868]
[1756989207194,40.0,207.85,207.84,6.68097868]
[1756989207399,26.0,207.86,207.84,6.68097868]
[1756989207594,40.0,207.86,207.84,6.68097868]
[1756989207786,0.67,207.89,207.84,7.37097868]
[1756989207984,6.68097868,207.9,207.87,6.68097868]
[1756989208188,6.68097868,207.95,207.89,6.68097868]
[1756989208375,7.35097868,207.96,207.91,6.68097868]
[1756989208577,26.0,207.93,207.82,0.28432314]
[1756989208881,26.0,207.93,207.86,6.68097868]
[1756989208882,6.68097868,207.92,207.86,6.68097868]
[1756989209076,26.0,207.87,207.8,0.69]
[1756989209284,26.0,207.87,207.83,6.68097868]
[1756989210091,26.0,207.87,207.81,4.81205287]
[1756989210294,26.0,207.87,207.84,6.68097868]
[1756989210501,40.69,207.89,207.85,6.68097868]
[1756989210502,40.0,207.89,207.85,6.68097868]
[1756989210796,66.67,207.89,207.82,0.69]
[1756989211098,6.68097868,207.87,207.81,6.68097868]
[1756989211503,6.68097868,207.82,207.76,0.03]
[1756989211798,7.35097868,207.81,207.76,0.03]
[1756989212377,0.67,207.8,207.76,0.03]
[1756989212589,26.0,207.79,207.76,0.03]
[1756989213305,7.35097868,207.83,207.77,6.68097868]
[1756989213485,39.98,207.84,207.8,6.68097868]
[1756989213802,26.0,207.83,207.81,6.68097868]
[1756989214193,0.06,207.87,207.83,4.81162488]
[1756989214397,0.06,207.87,207.84,0.69]
[1756989214785,0.06,207.87,207.86,6.68097868]
[1756989215682,0.06,207.87,207.86,7.37097868]
[1756989216191,0.06,207.87,207.86,12.18190911]
[1756989218406,0.06,207.87,207.86,12.46623225]
[1756989218706,0.06,207.9,207.87,0.28432314]
[1756989218915,0.06,207.9,207.86,17.52825651]
[1756989218916,0.06,207.9,207.86,4.81093043]
[1756989219126,0.06,207.9,207.89,6.68097868]
[1756989219488,0.06,207.9,207.87,0.69]
[1756989219699,0.06,207.9,207.88,6.68097868]
[1756989220004,0.06,207.9,207.89,6.96530182]
[1756989220417,0.06,207.9,207.89,12.465538]
[1756989220720,0.73,207.99,207.92,13.87991715]
[1756989220721,0.06,207.99,207.92,13.87991715]
[1756989221039,0.06,207.99,207.98,6.68097868]
[1756989221398,0.06,207.99,207.97,6.68097868]
[1756989221708,0.73,207.99,207.96,6.68097868]
[1756989221904,0.06,207.99,207.96,6.68097868]
[1756989222213,0.06,207.99,207.98,6.68097868]
[1756989222528,0.76,207.99,207.97,6.68097868]
[1756989222917,0.06,207.99,207.91,0.28432314]
[1756989223104,7.38097868,207.98,207.9,0.99432314]
[1756989223312,7.38097868,207.98,207.93,6.68097868]
[1756989223612,6.68097868,207.95,207.89,6.68097868]
[1756989223814,33.38097868,207.96,207.91,6.68097868]
[1756989224017,26.0,207.96,207.92,6.68097868]
[1756989224318,0.76,207.99,207.95,6.68097868]